Workbook

Sheet Лист1
A1: № рецептуры | B1: Наименование блюд | C1: Выход,г | D1: Белки, г | E1: Жиры, г | F1: Углеводы, г | G1: Калорийность, ккал | H1: Витамин B1, мг | I1: Витамин С, мг | J1: Витамин А, мг | K1: Витамин Е, мг | L1: Ca, мг | M1: P, мг | N1: Mg, мг | O1: Fe, мг
B2: 1-ая неделя
B3: 1 день
A4: ТТК | B4: Салат из моркови с яблоками | C4: 60 | D4: 0.64 | E4: 3.01 | F4: 5.11 | G4: 50.91 | H4: 0.03 | I4: 2.63 | J4: 0.00 | K4: 0.21 | L4: 14.40 | M4: 26.72 | N4: 18.23 | O4: 0.64
A5: ТТК | B5: Борщ из свежей капусты с картофелем на мясном бульоне, с мясом говодяни, со сметаной | C5: 250/15/10 | D5: 11.47 | E5: 11.99 | F5: 24.66 | G5: 245.50 | H5: 0.07 | I5: 10.79 | J5: 10.00 | K5: 2.51 | L5: 60.45 | M5: 95.08 | N5: 31.48 | O5: 1.60
A6: №349 Сбор.рец. На прод-ию для обуч. Во всех образ.учреж-Дели 2017 | B6: Компот из сухофруктов (75С) | C6: 200 | D6: 0.66 | E6: 0.09 | F6: 22.03 | G6: 92.80 | H6: 0.02 | I6: 0.73 | J6: 0.00 | K6: 0.51 | L6: 32.18 | M6: 23.44 | N6: 17.46 | O6: 0.67
A7: Хим.состав и калорийность российских продуктов питания,табл 6, стр 144 , 2012 Дели + | B7: Хлеб ржаной | C7: 30 | D7: 1.98 | E7: 0.36 | F7: 11.88 | G7: 59.40 | H7: 0.05 | I7: 0.00 | J7: 0.00 | K7: 0.42 | L7: 8.70 | M7: 45.00 | N7: 14.10 | O7: 1.17
B8: Итого: | C8: 565 | D8: =SUM(D4:D7) -> 14.75 | E8: 15.45 | F8: 63.68 | G8: 448.61 | H8: 0.17 | I8: 14.15 | J8: 10.00 | K8: 3.65 | L8: 115.73 | M8: 190.24 | N8: 81.27 | O8: 4.07
B10: 2 день
A11: №47 Сбор.рец. На прод-ию для питания детей в дошк образоват учрежд-Дели 2017 | B11: Салат из свежей капусты с морковью | C11: 80 | D11: 1.05 | E11: 2.60 | F11: 5.17 | G11: 48.32 | H11: 0.02 | I11: 13.68 | J11: 0.00 | K11: 6.71 | L11: 19.98 | M11: 22.65 | N11: 12.07 | O11: 0.37
A12: ТТК | B12: Биточки рыбные с рисом отварным рассыпчатым, с маслом сливочным | C12: 75/150/3 | D12: 12.93 | E12: 12.41 | F12: 43.12 | G12: 304.30 | H12: 0.08 | I12: 0.50 | J12: 15.90 | K12: 3.96 | L12: 41.00 | M12: 189.24 | N12: 44.95 | O12: 1.54
A13: № 376 Сбор.рец. На прод-ию для обуч. Во всех образ.учреж-Дели 2017 | B13: Чай с сахаром | C13: 190/10 | D13: 0.07 | E13: 0.02 | F13: 10.01 | G13: 40.00 | H13: 0.00 | I13: 0.03 | J13: 0.00 | K13: 0.00 | L13: 10.95 | M13: 2.80 | N13: 1.40 | O13: 0.27
A14: Хим.состав и калорийность российских продуктов питания,табл 6, стр 144 , 2012 Дели + | B14: Хлеб ржаной | C14: 30 | D14: 1.98 | E14: 0.36 | F14: 11.88 | G14: 59.40 | H14: 0.05 | I14: 0.00 | J14: 0.00 | K14: 0.42 | L14: 8.70 | M14: 45.00 | N14: 14.10 | O14: 1.17
B15: Итого: | C15: 538 | D15: =SUM(D11:D14) -> 16.03 | E15: 15.39 | F15: 70.18 | G15: 452.02 | H15: 0.15 | I15: 14.21 | J15: 15.90 | K15: 11.09 | L15: 80.63 | M15: 259.69 | N15: 72.52 | O15: 3.35
B17: 3 день
A18: № 15 Сбор.рец. На прод-ию для обуч. Во всех образ.учреж-Дели -2017 | B18: Сыр порционно | C18: 10 | D18: 2.63 | E18: 2.66 | F18: 0.00 | G18: 34.33 | H18: 0.00 | I18: 0.07 | J18: 21.00 | K18: 0.04 | L18: 100.00 | M18: 60.00 | N18: 5.50 | O18: 0.07
A19: № 260 Сбор.рец. На прод-ию для обуч. Во всех образ.учреж-Дели -2017 | B19: Гуляш из отварной говядины | C19: 50/50 | D19: 10.39 | E19: 14.79 | F19: 10.30 | G19: 221.00 | H19: 0.03 | I19: 0.92 | K19: 2.61 | L19: 61.81 | M19: 154.15 | N19: 22.03 | O19: 3.06
A20: № 171 Сбор.рец. На прод-ию для обуч. Во всех образ.учреж-Дели 2017 | B20: Каша гречневая рассыпчатая | C20: 150 | D20: 3.77 | E20: 2.29 | F20: 39.72 | G20: 214.00 | H20: 0.21 | I20: 0.00 | J20: 0.00 | K20: 0.40 | L20: 23.99 | M20: 207.35 | N20: 140.52 | O20: 4.71
A21: № 377 Сбор.рец. На прод-ию для обуч. Во всех образ.учреж-Дели 2017 | B21: Чай с сахаром, с лимоном | C21: 185/10/5 | D21: 0.11 | E21: 0.02 | F21: 10.15 | G21: 41.32 | H21: 0.00 | I21: 2.03 | J21: 0.00 | K21: 0.01 | L21: 13.25 | M21: 3.96 | N21: 2.16 | O21: 0.33
A22: Хим.состав и калорийность российских продуктов питания,табл 6, стр 144 , 2012 Дели + | B22: Хлеб ржаной | C22: 50 | D22: 3.30 | E22: 0.60 | F22: 19.80 | G22: 99.00 | H22: 0.09 | I22: 0.00 | J22: 0.00 | K22: 0.70 | L22: 14.50 | M22: 75.00 | N22: 23.50 | O22: 1.95
B23: Итого: | C23: 510 | D23: =SUM(D18:D22) -> 20.20 | E23: 20.36 | F23: 79.97 | G23: 609.65 | H23: 0.33 | I23: 3.02 | J23: 21.00 | K23: 3.76 | L23: 213.55 | M23: 500.46 | N23: 193.71 | O23: 10.12
B25: 4 день
A26: ТТК Хим.состав и калорийность российских продуктов питания табл 8 стр 168 , 2012 Дели + | B26: Свекла отварная дольками | C26: 60 | D26: 1.08 | E26: 0.06 | F26: 5.88 | G26: 28.80 | H26: 0.01 | I26: 5.34 | J26: 0.00 | K26: 0.06 | L26: 27.00 | M26: 30.60 | N26: 15.60 | O26: 1.02
A27: ТТК | B27: Птица запеченная | C27: 100 | D27: 10.42 | E27: 12.43 | F27: 8.65 | G27: 192.00 | H27: 0.06 | I27: 1.28 | J27: 51.80 | K27: 0.80 | L27: 41.26 | M27: 216.40 | N27: 23.42 | O27: 1.78
A28: № 312 Сбор.рец. На прод-ию для обуч. Во всех образ.учреж-Дели -2017 | B28: Пюре картофельное с маслом сливочным | C28: 150/3 | D28: 3.08 | E28: 6.25 | F28: 20.47 | G28: 150.45 | H28: 0.14 | I28: 18.16 | J28: 8.00 | K28: 0.20 | L28: 37.46 | M28: 87.20 | N28: 27.75 | O28: 1.01
A29: №349 Сбор.рец. На прод-ию для обуч. Во всех образ.учреж-Дели 2017 | B29: Компот из сухофруктов (75С) | C29: 200 | D29: 0.66 | E29: 0.09 | F29: 22.03 | G29: 92.80 | H29: 0.02 | I29: 0.73 | J29: 0.00 | K29: 0.51 | L29: 32.18 | M29: 23.44 | N29: 17.46 | O29: 0.67
A30: Хим.состав и калорийность российских продуктов питания,табл 6, стр 134 , 2012 Дели + | B30: Хлеб пшеничный | C30: 30 | D30: 2.28 | E30: 0.24 | F30: 14.76 | G30: 70.50 | H30: 0.03 | I30: 0.00 | J30: 0.00 | K30: 0.33 | L30: 6.00 | M30: 19.50 | N30: 4.20 | O30: 0.33
A31: Хим.состав и калорийность российских продуктов питания,табл 6, стр 144 , 2012 Дели + | B31: Хлеб ржаной | C31: 40 | D31: 2.64 | E31: 0.48 | F31: 15.84 | G31: 79.20 | H31: 0.07 | I31: 0.00 | J31: 0.00 | K31: 0.56 | L31: 11.60 | M31: 60.00 | N31: 18.80 | O31: 1.56
B32: Итого: | C32: 583 | D32: =SUM(D26:D31) -> 20.16 | E32: 19.55 | F32: 87.63 | G32: 613.75 | H32: 0.33 | I32: 25.51 | J32: =SUM(J27:J31) -> 59.80 | K32: =SUM(K26:K31) -> 2.46 | L32: =SUM(L26:L31) -> 155.50 | M32: =SUM(M26:M31) -> 437.14 | N32: =SUM(N26:N31) -> 107.23 | O32: =SUM(O26:O31) -> 6.37
B34: 5 день
A35: № 15 Сбор.рец. На прод-ию для обуч. Во всех образ.учреж-Дели -2017 | B35: Сыр порционно | C35: 15 | D35: 3.95 | E35: 3.99 | F35: 0.00 | G35: 51.50 | H35: 0.01 | I35: 0.11 | J35: 31.50 | K35: 0.06 | L35: 150.00 | M35: 90.00 | N35: 8.25 | O35: 0.11
A36: №279,331 Сбор.рец. На прод-ию для питания детей в дошк образоват учрежд-Дели 2017 | B36: Тефтели мясные в сметанно-томатном соусе | C36: 60/40 | D36: 7.284 | E36: 11.94 | F36: 8.36 | G36: 124 | H36: 0.048 | I36: 0.276 | J36: 29.62 | K36: 0.421 | L36: 20.726 | M36: 80.202 | N36: 15.521 | O36: 0.64
A37: № 203 Сбор.рец. На прод-ию для обуч. Во всех образ.учреж-Дели 2017 | B37: Макаронные изделия отварные с маслом сливочным | C37: 180/5 | D37: 5.10 | E37: 3.62 | F37: 31.96 | G37: 176.10 | H37: 0.06 | I37: 0.00 | J37: 12.00 | K37: 0.80 | L37: 11.91 | M37: 38.07 | N37: 8.62 | O37: 0.86
A38: ТТК | B38: Напиток из свежих фруктов (75С) | C38: 200 | D38: 0.34 | E38: 0.17 | F38: 21.46 | G38: 103.50 | H38: 0.02 | I38: 3.17 | J38: 0.00 | K38: 0.13 | L38: 16.67 | M38: 7.05 | N38: 7.78 | O38: 0.88
A39: Хим.состав и калорийность российских продуктов питания,табл 6, стр 134 , 2012 Дели + | B39: Хлеб пшеничный | C39: 45 | D39: 3.42 | E39: 0.36 | F39: 22.14 | G39: 105.75 | H39: 0.05 | I39: 0.00 | J39: 0.00 | K39: 0.50 | L39: 9.00 | M39: 29.25 | N39: 6.30 | O39: 0.50
B40: Итого: | C40: 545 | D40: =SUM(D35:D39) -> 20.09 | E40: =SUM(E35:E39) -> 20.08 | F40: =SUM(F35:F39) -> 83.92 | G40: =SUM(G35:G39) -> 560.85 | H40: =SUM(H35:H39) -> 0.19 | I40: =SUM(I35:I39) -> 3.56 | J40: 73.12 | K40: 1.91 | L40: 208.31 | M40: 244.57 | N40: 46.47 | O40: 2.99
B42: 6 день
A43: Хим.состав и калорийность российских продуктов питания табл 9 стр 184 , 2012 Дели + | B43: Плоды и ягоды свежие (яблоки) | C43: 100 | D43: 0.40 | E43: 0.40 | F43: 9.80 | G43: 47.00 | H43: 0.03 | I43: 10.00 | K43: 0.20 | L43: 16.00 | M43: 11.00 | N43: 9.00 | O43: 2.20
A44: ТТК | B44: Сырники из творога с кашей молочный "Дружба" с маслом сливочным | C44: 60/150/5 | D44: 10.55 | E44: 11.85 | F44: 39.40 | G44: 324.45 | H44: 0.11 | I44: 0.88 | J44: 65.30 | K44: 1.83 | L44: 314.60 | M44: 252.49 | N44: 41.76 | O44: 1.01
A45: № 379 Сбор.рец. На прод-ию для обуч. Во всех образ.учреж-Дели 2017 | B45: Кофейный напиток с молоком | C45: 200 | D45: 3.2 | E45: 2.7 | F45: 6.00 | G45: 60.70 | H45: 0 | I45: 1.30 | J45: 20.00 | K45: 0.00 | L45: 125.80 | M45: 90 | N45: 14.0 | O45: 0.10
A46: Хим.состав и калорийность российских продуктов питания,табл 6, стр 144 , 2012 Дели + | B46: Хлеб ржаной | C46: 30 | D46: 1.98 | E46: 0.36 | F46: 11.88 | G46: 59.40 | H46: 0.05 | I46: 0.00 | J46: 0.00 | K46: 0.42 | L46: 8.70 | M46: 45.00 | N46: 14.00 | O46: 1.17
B47: Итого: | C47: 545 | D47: =SUM(D43:D46) -> 16.13 | E47: 15.31 | F47: 67.08 | G47: 491.55 | H47: 0.24 | I47: 12.18 | J47: 85.30 | K47: 2.45 | L47: 465.10 | M47: 398.49 | N47: 78.86 | O47: 4.48
B48: Итого за 6 дней 1 недели: | C48: =C8+C15+C23+C32+C40+C47 -> 3286 | D48: =D8+D15+D23+D32+D40+D47 -> 107.36 | E48: =E8+E15+E23+E32+E40+E47 -> 106.14 | F48: =F8+F15+F23+F32+F40+F47 -> 452.46 | G48: 3176.42 | H48: =H8+H15+H23+H32+H40+H47 -> 1.3995 | I48: 72.6001 | J48: 265.12 | K48: 25.3015 | L48: 1238.773 | M48: 2030.5682 | N48: 580.0588 | O48: 31.403
B54: 2-ая неделя
B55: 1 день
A56: № 47 Сбор.рец. На прод-ию для обуч. Во всех образ.учреж-Дели -2017 | B56: Салат из свежей капусты с морковью | C56: 80 | D56: 1.05 | E56: 2.60 | F56: 5.17 | G56: 48.32 | H56: 0.02 | I56: 13.68 | J56: 0.00 | K56: 6.71 | L56: 19.98 | M56: 22.65 | N56: 12.07 | O56: 0.37
A57: ТТК | B57: Котлеты "Аппетитные" с кашей гречневой рассыпчатой с маслом сливочным | C57: 75/150/3 | D57: 15.16 | E57: 16.19 | F57: 44.63 | G57: 386.76 | H57: 0.26 | I57: 1.49 | J57: 71.98 | K57: 1.73 | L57: 41.59 | M57: 320.78 | N57: 154.60 | O57: 6.23
A58: № 377 Сбор.рец. На прод-ию для обуч. Во всех образ.учреж-Дели 2017 | B58: Чай с сахаром, с лимоном | C58: 185/10/5 | D58: 0.11 | E58: 0.02 | F58: 10.15 | G58: 41.32 | H58: 0.00 | I58: 2.03 | J58: 0.00 | K58: 0.01 | L58: 13.25 | M58: 3.96 | N58: 2.16 | O58: 0.33
A59: Хим.состав и калорийность российских продуктов питания,табл 6, стр 134 , 2012 Дели + | B59: Хлеб пшеничный | C59: 45 | D59: 3.42 | E59: 0.36 | F59: 22.14 | G59: 105.75 | H59: 0.05 | I59: 0.00 | J59: 0.00 | K59: 0.50 | L59: 9.00 | M59: 29.25 | N59: 6.30 | O59: 0.50
B60: Итого: | C60: 553 | D60: =SUM(D56:D59) -> 19.74 | E60: 19.17 | F60: 82.09 | G60: 582.15 | H60: 0.33 | I60: 17.20 | J60: 71.98 | K60: 8.95 | L60: 83.82 | M60: 376.64 | N60: 175.13 | O60: 7.43
B62: 2 день
A63: № 52 Сбор.рец. На прод-ию для обуч. Во всех образ.учреж-Дели -2017 | B63: Салат из отварной свеклы | C63: 60 | D63: 0.84 | E63: 3.61 | F63: 4.96 | G63: 55.68 | H63: 0.01 | I63: 3.99 | J63: 0.00 | K63: 1.62 | L63: 21.28 | M63: 24.38 | N63: 12.42 | O63: 0.79
A64: № 229 Сбор.рец. На прод-ию для обуч. Во всех образ.учреж-Дели 2017 | B64: Рыба, тушенная в томате с овощами | C64: 50/50 | D64: 9.05 | E64: 6.09 | F64: 3.80 | G64: 105.00 | H64: 0.05 | I64: 3.73 | J64: 5.82 | K64: 2.52 | L64: 69.07 | M64: 162.19 | N64: 48.53 | O64: 0.85
A65: № 312 Сбор.рец. На прод-ию для обуч. Во всех образ.учреж-Дели -2017 | B65: Пюре картофельное с маслом сливочным | C65: 150/3 | D65: 3.08 | E65: 6.25 | F65: 20.47 | G65: 150.45 | H65: 0.14 | I65: 18.16 | J65: 8.00 | K65: 0.21 | L65: 37.46 | M65: 87.20 | N65: 27.75 | O65: 1.01
A66: №342 Сбор.рец. На прод-ию для обуч. Во всех образ.учреж-Дели 2017 | B66: Компот из свежих яблок (75С) | C66: 200 | D66: 0.16 | E66: 0.16 | F66: 17.90 | G66: 74.60 | H66: 0.01 | I66: 0.90 | J66: 0.00 | K66: 0.08 | L66: 13.88 | M66: 4.40 | N66: 5.14 | O66: 0.92
A67: Хим.состав и калорийность российских продуктов питания табл 6 стр 134 , 2012 Дели + | B67: Хлеб пшеничный | C67: 35 | D67: 2.66 | E67: 0.28 | F67: 17.22 | G67: 82.25 | H67: 0.04 | I67: 0.00 | J67: 0.00 | K67: 0.38 | L67: 7.00 | M67: 22.75 | N67: 4.90 | O67: 0.39
B68: Итого: | C68: 548 | D68: =SUM(D63:D67) -> 15.79 | E68: =SUM(E63:E67) -> 16.39 | F68: 64.34 | G68: =SUM(G63:G67) -> 467.98 | H68: =SUM(H63:H67) -> 0.25 | I68: =SUM(I63:I67) -> 26.78 | J68: =SUM(J63:J67) -> 13.82 | K68: =SUM(K63:K67) -> 4.81 | L68: 148.68 | M68: 300.91 | N68: =SUM(N63:N67) -> 98.74 | O68: =SUM(O63:O67) -> 3.96
B70: 3 день
A71: Хим.состав и калорийность российских продуктов питания табл 9 стр 184 , 2012 Дели + | B71: Плоды и ягоды свежие (яблоки) | C71: 100 | D71: 0.40 | E71: 0.40 | F71: 9.80 | G71: 47.00 | H71: 0.03 | I71: 10.00 | K71: 0.20 | L71: 16.00 | M71: 11.00 | N71: 9.00 | O71: 2.20
A72: № 265 Сбор.рец. На прод-ию для обуч. Во всех образ.учреж-Дели 2017 | B72: Плов из отварной говядины с рисовой крупой | C72: 50/150 | D72: 15.95 | E72: 19.55 | F72: 39.75 | G72: 408.42 | H72: 0.04 | I72: 0.27 | J72: 0.00 | K72: 4.23 | L72: 89.33 | M72: 176.23 | N72: 40.58 | O72: 2.64
A73: № 376 Сбор.рец. На прод-ию для обуч. Во всех образ.учреж-Дели 2017 | B73: Чай с сахаром | C73: 190/10 | D73: 0.07 | E73: 0.02 | F73: 10.01 | G73: 40.00 | H73: 0.00 | I73: 0.03 | J73: 0.00 | K73: 0.00 | L73: 10.95 | M73: 2.80 | N73: 1.40 | O73: 0.27
A74: Хим.состав и калорийность российских продуктов питания,табл 6, стр 134 , 2012 Дели + | B74: Хлеб пшеничный | C74: 25 | D74: 1.90 | E74: 0.20 | F74: 12.30 | G74: 58.75 | H74: 0.03 | I74: 0.00 | J74: 0.00 | K74: 0.28 | L74: 5.00 | M74: 16.25 | N74: 3.50 | O74: 0.28
A75: Хим.состав и калорийность российских продуктов питания,табл 6, стр 144 , 2012 Дели + | B75: Хлеб ржаной | C75: 20 | D75: 1.32 | E75: 0.24 | F75: 7.92 | G75: 39.60 | H75: 0.03 | I75: 0.00 | J75: 0.00 | K75: 0.28 | L75: 5.80 | M75: 30.00 | N75: 9.40 | O75: 0.78
B76: Итого: | C76: 545 | D76: =SUM(D71:D75) -> 19.64 | E76: 20.41 | F76: 79.78 | G76: 593.77 | H76: 0.13 | I76: 10.30 | J76: 0.00 | K76: 4.99 | L76: 127.08 | M76: 236.28 | N76: 63.88 | O76: 6.17
B78: 4 день
A79: ТТК | B79: Салат из моркови | C79: 60 | D79: 0.74 | E79: 0.06 | F79: 9.98 | G79: 49.02 | H79: 0.03 | I79: 2.02 | J79: 0.00 | K79: 8.04 | L79: 15.46 | M79: 31.66 | N79: 21.63 | O79: 0.40
A80: ТТК | B80: Котлета из мяса птицы с макаронными изделиями отварными, с маслом сливочным | C80: 75/150/5 | D80: 11.45 | E80: 12.46 | F80: 31.32 | G80: 289.95 | H80: 0.10 | I80: 0.50 | J80: 23.90 | K80: 4.80 | L80: 31.70 | M80: 147.63 | N80: 38.18 | O80: 2.08
A81: №382 Сбор.рец. На прод-ию для обуч. Во всех образ.учреж-Дели 2017 | B81: Какако с молоком | C81: 200 | D81: 1.58 | E81: 3.54 | F81: 7.60 | G81: 78.60 | H81: 0.06 | I81: 1.59 | J81: 24.40 | K81: 0.00 | L81: 151.92 | M81: 124.56 | N81: 21.34 | O81: 0.45
A82: Хим.состав и калорийность российских продуктов питания,табл 6, стр 134 , 2012 Дели + | B82: Хлеб пшеничный | C82: 30 | D82: 2.28 | E82: 0.24 | F82: 14.76 | G82: 70.50 | H82: 0.03 | I82: 0.00 | J82: 0.00 | K82: 0.33 | L82: 6.00 | M82: 19.50 | N82: 4.20 | O82: 0.33
B83: Итого: | C83: 520 | D83: =SUM(D79:D82) -> 16.05 | E83: 16.30 | F83: 63.66 | G83: 488.07 | H83: 0.22 | I83: 4.11 | J83: 48.30 | K83: 13.17 | L83: 205.08 | M83: 323.35 | N83: 85.35 | O83: 3.26
B85: 5 день
A86: Хим.состав и калорийность российских продуктов питания табл 9 стр 184 , 2012 Дели + | B86: Плоды и ягоды свежие (апельсины) | C86: 180 | D86: 1.62 | E86: 0.36 | F86: 14.58 | G86: 77.40 | H86: 0.07 | I86: 108.00 | K86: 0.36 | L86: 61.20 | M86: 41.40 | N86: 23.40 | O86: 0.54
A87: № 143, 241 Сбор.рец. На прод-ию для обуч. Во всех образ.учреж-Дели 2017 | B87: Овощи тушеные с мясом | C87: 50/150 | D87: 12.48 | E87: 15.68 | F87: 19.34 | G87: 271.50 | H87: 0.12 | I87: 18.77 | J87: 39.00 | K87: 4.67 | L87: 89.15 | M87: 148.63 | N87: 39.69 | O87: 2.23
A88: №349 Сбор.рец. На прод-ию для обуч. Во всех образ.учреж-Дели 2017 | B88: Компот из сухофруктов (75С) | C88: 200 | D88: 0.66 | E88: 0.09 | F88: 22.03 | G88: 92.80 | H88: 0.01 | I88: 0.73 | J88: 0.00 | K88: 0.51 | L88: 32.18 | M88: 23.44 | N88: 17.46 | O88: 0.67
A89: Хим.состав и калорийность российских продуктов питания,табл 6, стр 144 , 2012 Дели + | B89: Хлеб ржаной | C89: 20 | D89: 1.32 | E89: 0.24 | F89: 7.92 | G89: 39.60 | H89: 0.03 | I89: 0.00 | J89: 0.00 | K89: 0.28 | L89: 5.80 | M89: 30.00 | N89: 9.40 | O89: 0.78
B90: Итого: | C90: 600 | D90: =SUM(D86:D89) -> 16.08 | E90: 16.37 | F90: 63.87 | G90: 481.30 | H90: 0.23 | I90: 127.50 | J90: 39.00 | K90: 5.82 | L90: 188.33 | M90: 243.47 | N90: 89.95 | O90: 4.22
B92: 6 день
A93: ТТК | B93: Сырники из творога с кашей пшенной молочныйс маслом сливочным | C93: 60/180/5 | D93: 16.02 | E93: 18.13 | F93: 42.98 | G93: 386.40 | H93: 0.13 | I93: 1.02 | J93: 67.52 | K93: 1.84 | L93: 344.24 | M93: 275.54 | N93: 47.35 | O93: 1.13
A94: № 376 Сбор.рец. На прод-ию для обуч. Во всех образ.учреж-Дели 2017 | B94: Чай "Витаминный" с шиповником | C94: 185/10/5 | D94: 0.24 | E94: 0.09 | F94: 12.43 | G94: 54.20 | H94: -0.00 | I94: 50.03 | J94: 0.00 | K94: 0.19 | L94: 13.95 | M94: 3.65 | N94: 2.25 | O94: 0.42
A95: Хим.состав и калорийность российских продуктов питания,табл 6, стр 134 , 2012 Дели + | B95: Хлеб пшеничный | C95: 25 | D95: 1.90 | E95: 0.20 | F95: 12.30 | G95: 58.75 | H95: 0.03 | I95: 0.00 | J95: 0.00 | K95: 0.28 | L95: 5.00 | M95: 16.25 | N95: 3.50 | O95: 0.28
A96: Хим.состав и калорийность российских продуктов питания,табл 6, стр 144 , 2012 Дели + | B96: Хлеб ржаной | C96: 30 | D96: 1.98 | E96: 0.36 | F96: 11.88 | G96: 59.40 | H96: 0.05 | I96: 0.00 | J96: 0.00 | K96: 0.42 | L96: 8.70 | M96: 45.00 | N96: 14.10 | O96: 1.17
B97: Итого: | C97: 500 | D97: =SUM(D93:D96) -> 20.14 | E97: 18.78 | F97: 79.59 | G97: 558.75 | H97: 0.21 | I97: 51.05 | J97: 67.52 | K97: 2.73 | L97: 371.89 | M97: 340.44 | N97: 67.20 | O97: 2.98
B98: Итого за 6 дней 2 недели: | C98: =C60+C68+C76+C90+C97 -> 2746 | D98: 91.35 | E98: 91.85 | F98: 369.454 | G98: 2690.717 | H98: 1.14215 | I98: 109.421 | J98: 201.6192 | K98: 34.6171 | L98: 936.5428 | M98: 1577.6203 | N98: 490.2972 | O98: 23.7964
B99: ВСЕГО за 12 дней: | C99: 5952 | D99: 198.682 | E99: 197.17 | F99: 821.93 | G99: 5867.14 | H99: 2.52 | I99: 182.02 | J99: 466.74 | K99: 59.9186 | L99: 2175.32 | M99: 3608.19 | N99: 1070.36 | O99: 55.20
B100: В среднем на 1 учащегося в день: | C100: =C99/12 -> 496 | D100: =D99/12 -> 16.56 | E100: 16.43 | F100: 68.49 | G100: 488.93 | H100: 0.21 | I100: 15.17 | J100: 38.89 | K100: 4.99 | L100: 181.28 | M100: 300.68 | N100: 89.20 | O100: 4.60

Sheet Лист2

Sheet Лист3
